[Event "*** Titled Tuesday Blitz"]
[Site "Chess.com"]
[Date "2018.09.04"]
[Round "7"]
[White "Fins0905"]
[Black "TastyFrenchFries"]
[Result "0-1"]
[WhiteElo "2592"]
[BlackElo "2374"]
[TimeControl "180+2"]
[EndTime "15:12:33 PDT"]
[Termination "TastyFrenchFries won on time"]

1. d4 {[%clk 0:02:50.7]} 1... e6 {[%clk 0:03:01.9]} 2. c4 {[%clk 0:02:51.2]}
2... Nf6 {[%clk 0:03:01.5]} 3. Nf3 {[%clk 0:02:52]} 3... Bb4+ {[%clk 0:03:01.5]}
4. Bd2 {[%clk 0:02:51.6]} 4... Qe7 {[%clk 0:03:02.2]} 5. g3 {[%clk 0:02:52.1]}
5... Nc6 {[%clk 0:03:02.9]} 6. Nc3 {[%clk 0:02:51.9]} 6... Bxc3 {[%clk
0:02:43.7]} 7. Bxc3 {[%clk 0:02:52.5]} 7... Ne4 {[%clk 0:02:43.5]} 8. Rc1 {[%clk
0:02:53.1]} 8... O-O {[%clk 0:02:42]} 9. Bg2 {[%clk 0:02:53.7]} 9... d6 {[%clk
0:02:41.3]} 10. d5 {[%clk 0:02:53.5]} 10... Nd8 {[%clk 0:02:39.5]} 11. Nd2
{[%clk 0:02:49.7]} 11... Nxc3 {[%clk 0:02:37.9]} 12. Rxc3 {[%clk 0:02:51.6]}
12... e5 {[%clk 0:02:37.2]} 13. O-O {[%clk 0:02:43.5]} 13... f5 {[%clk
0:02:35.6]} 14. c5 {[%clk 0:02:40.1]} 14... Nf7 {[%clk 0:02:19.2]} 15. Qc2
{[%clk 0:02:35.3]} 15... Bd7 {[%clk 0:02:17.2]} 16. Rc1 {[%clk 0:02:31.4]} 16...
b6 {[%clk 0:01:59.7]} 17. cxd6 {[%clk 0:01:55.3]} 17... cxd6 {[%clk 0:02:01.6]}
18. Qb3 {[%clk 0:01:44.7]} 18... Rfc8 {[%clk 0:01:59]} 19. Qa3 {[%clk
0:01:34.9]} 19... a5 {[%clk 0:01:48.4]} 20. Nc4 {[%clk 0:01:15.9]} 20... Rab8
{[%clk 0:01:36.4]} 21. b4 {[%clk 0:01:03.4]} 21... axb4 {[%clk 0:01:33]} 22.
Qxb4 {[%clk 0:01:05.3]} 22... Rc7 {[%clk 0:01:10.7]} 23. a4 {[%clk 0:00:38.7]}
23... Rcb7 {[%clk 0:00:52]} 24. Na3 {[%clk 0:00:34.1]} 24... Ra7 {[%clk
0:00:50.6]} 25. Nb5 {[%clk 0:00:35.1]} 25... Bxb5 {[%clk 0:00:48.7]} 26. axb5
{[%clk 0:00:33.2]} 26... g6 {[%clk 0:00:46.9]} 27. Rc6 {[%clk 0:00:29.5]} 27...
e4 {[%clk 0:00:37.7]} 28. Qd4 {[%clk 0:00:23.8]} 28... Rab7 {[%clk 0:00:36.3]}
29. Rc8+ {[%clk 0:00:20.8]} 29... Nd8 {[%clk 0:00:28.7]} 30. h4 {[%clk
0:00:17.3]} 30... Qg7 {[%clk 0:00:22.8]} 31. Qe3 {[%clk 0:00:12.1]} 31... Qd7
{[%clk 0:00:18.2]} 32. R8c6 {[%clk 0:00:09.1]} 32... Ra7 {[%clk 0:00:17.6]} 33.
h5 {[%clk 0:00:07.8]} 33... Nxc6 {[%clk 0:00:14.8]} 34. dxc6 {[%clk 0:00:09]}
34... Qg7 {[%clk 0:00:13.3]} 35. Rd1 {[%clk 0:00:09.3]} 35... Qe5 {[%clk
0:00:12.2]} 36. f4 {[%clk 0:00:08.8]} 36... Qxb5 {[%clk 0:00:11.4]} 37. Rxd6
{[%clk 0:00:09.3]} 37... Qb4 {[%clk 0:00:09.6]} 38. Rd4 {[%clk 0:00:04.7]} 38...
Qc5 {[%clk 0:00:09.7]} 39. hxg6 {[%clk 0:00:05.5]} 39... hxg6 {[%clk 0:00:09.5]}
40. Kh2 {[%clk 0:00:05.9]} 40... Rc7 {[%clk 0:00:10.7]} 41. Qd2 {[%clk
0:00:06.7]} 41... Rxc6 {[%clk 0:00:11.7]} 42. Rd8+ {[%clk 0:00:05.6]} 42... Rxd8
{[%clk 0:00:13]} 43. Qxd8+ {[%clk 0:00:07.3]} 43... Kg7 {[%clk 0:00:14.8]} 44.
Qd7+ {[%clk 0:00:08.4]} 44... Kf6 {[%clk 0:00:16.1]} 45. Qd8+ {[%clk 0:00:09.4]}
45... Qe7 {[%clk 0:00:16.6]} 46. Qh8+ {[%clk 0:00:10]} 46... Qg7 {[%clk
0:00:17.3]} 47. Qd8+ {[%clk 0:00:10.8]} 47... Qe7 {[%clk 0:00:18.5]} 48. Qh8+
{[%clk 0:00:11.6]} 48... Ke6 {[%clk 0:00:20]} 49. e3 {[%clk 0:00:11.5]} 49...
Rc2 {[%clk 0:00:20.5]} 50. Qe5+ {[%clk 0:00:10.6]} 50... Kd7 {[%clk 0:00:20.7]}
51. Qd5+ {[%clk 0:00:11]} 51... Kc7 {[%clk 0:00:21.9]} 52. Qb3 {[%clk
0:00:11.5]} 52... Rc5 {[%clk 0:00:23.1]} 53. Bf1 {[%clk 0:00:11.9]} 53... Qd6
{[%clk 0:00:24]} 54. Qf7+ {[%clk 0:00:11.5]} 54... Qd7 {[%clk 0:00:25.3]} 55.
Qg8 {[%clk 0:00:10.5]} 55... Qd2+ {[%clk 0:00:26.1]} 56. Kh3 {[%clk 0:00:10.4]}
56... Qxe3 {[%clk 0:00:25.9]} 57. Qf7+ {[%clk 0:00:10.3]} 57... Kb8 {[%clk
0:00:24.9]} 58. Qf8+ {[%clk 0:00:10.2]} 58... Rc8 {[%clk 0:00:25.3]} 59. Qd6+
{[%clk 0:00:10.9]} 59... Kb7 {[%clk 0:00:26.8]} 60. Qd5+ {[%clk 0:00:09.7]}
60... Ka7 {[%clk 0:00:26.9]} 61. Qd7+ {[%clk 0:00:08.5]} 61... Kb8 {[%clk
0:00:28.4]} 62. Qd6+ {[%clk 0:00:04.6]} 62... Rc7 {[%clk 0:00:29.6]} 63. Qd8+
{[%clk 0:00:05.1]} 63... Kb7 {[%clk 0:00:29.7]} 64. Qd5+ {[%clk 0:00:06.2]}
64... Ka7 {[%clk 0:00:29.7]} 65. Qa2+ {[%clk 0:00:07.4]} 65... Kb8 {[%clk
0:00:29.8]} 66. Qg8+ {[%clk 0:00:07]} 66... Rc8 {[%clk 0:00:30.9]} 67. Qg7
{[%clk 0:00:07.6]} 67... Qc5 {[%clk 0:00:32]} 68. Ba6 {[%clk 0:00:07.3]} 68...
Rc7 {[%clk 0:00:32.8]} 69. Qxg6 {[%clk 0:00:07.5]} 69... e3 {[%clk 0:00:32.4]}
70. Qe8+ {[%clk 0:00:07.8]} 70... Ka7 {[%clk 0:00:33.3]} 71. Be2 {[%clk
0:00:07.6]} 71... Rh7+ {[%clk 0:00:32.6]} 72. Kg2 {[%clk 0:00:07.9]} 72... Rc7
{[%clk 0:00:30.7]} 73. Qe6 {[%clk 0:00:05.5]} 73... Qc6+ {[%clk 0:00:29]} 74.
Qxc6 {[%clk 0:00:06.4]} 74... Rxc6 {[%clk 0:00:30.9]} 75. Kf3 {[%clk 0:00:07.7]}
75... Re6 {[%clk 0:00:29.6]} 76. g4 {[%clk 0:00:06.5]} 76... fxg4+ {[%clk
0:00:28.1]} 77. Kxg4 {[%clk 0:00:08.4]} 77... b5 {[%clk 0:00:23.2]} 78. f5
{[%clk 0:00:09.4]} 78... Re8 {[%clk 0:00:20.6]} 79. Bxb5 {[%clk 0:00:06.2]}
79... e2 {[%clk 0:00:21.2]} 80. Bxe2 {[%clk 0:00:07.2]} 80... Rxe2 {[%clk
0:00:22.6]} 81. f6 {[%clk 0:00:08.7]} 81... Kb6 {[%clk 0:00:22.4]} 82. Kf5
{[%clk 0:00:08]} 82... Kc7 {[%clk 0:00:23]} 83. f7 {[%clk 0:00:09.1]} 83... Rf2+
{[%clk 0:00:23.6]} 84. Kg6 {[%clk 0:00:05.4]} 84... Kd7 {[%clk 0:00:23.9]} 85.
Kg7 {[%clk 0:00:05.3]} 85... Ke7 {[%clk 0:00:25.2]} 0-1

[Event "*** Titled Tuesday Blitz"]
[Site "Chess.com"]
[Date "2018.09.04"]
[Round "7"]
[White "dretch"]
[Black "danyuffa"]
[Result "0-1"]
[WhiteElo "2770"]
[BlackElo "2710"]
[TimeControl "180+2"]
[EndTime "15:12:35 PDT"]
[Termination "danyuffa won by resignation"]

1. d4 {[%clk 0:03:01.9]} 1... Nf6 {[%clk 0:03:00.5]} 2. c4 {[%clk 0:03:02.9]}
2... c5 {[%clk 0:02:58.7]} 3. d5 {[%clk 0:03:03.8]} 3... g6 {[%clk 0:02:59.1]}
4. Nc3 {[%clk 0:03:04.7]} 4... Bg7 {[%clk 0:02:59.5]} 5. e4 {[%clk 0:03:05.8]}
5... d6 {[%clk 0:03:00.5]} 6. h3 {[%clk 0:03:05.9]} 6... O-O {[%clk 0:03:01.6]}
7. Nf3 {[%clk 0:03:07.1]} 7... e6 {[%clk 0:03:02.7]} 8. Bd3 {[%clk 0:03:08.3]}
8... exd5 {[%clk 0:03:03.8]} 9. cxd5 {[%clk 0:03:09.6]} 9... a6 {[%clk
0:03:02.5]} 10. a4 {[%clk 0:03:10.3]} 10... h6 {[%clk 0:03:02.7]} 11. O-O {[%clk
0:03:09.7]} 11... g5 {[%clk 0:03:01.5]} 12. Nd2 {[%clk 0:03:10]} 12... Nbd7
{[%clk 0:02:55.2]} 13. f4 {[%clk 0:03:07.9]} 13... gxf4 {[%clk 0:02:55.2]} 14.
Nc4 {[%clk 0:03:09.2]} 14... Ne5 {[%clk 0:02:46.6]} 15. Bxf4 {[%clk 0:03:09.5]}
15... Nxc4 {[%clk 0:02:32.4]} 16. Bxc4 {[%clk 0:03:11.4]} 16... Qe7 {[%clk
0:02:33]} 17. e5 {[%clk 0:02:46.9]} 17... dxe5 {[%clk 0:02:32.7]} 18. d6 {[%clk
0:02:48.8]} 18... Qd8 {[%clk 0:02:22.5]} 19. Bxe5 {[%clk 0:02:48.9]} 19... Be6
{[%clk 0:02:12.9]} 20. Bxe6 {[%clk 0:02:46.7]} 20... fxe6 {[%clk 0:02:13.9]} 21.
Qd3 {[%clk 0:02:35.5]} 21... Qd7 {[%clk 0:02:05.5]} 22. Qg6 {[%clk 0:02:35.5]}
22... Qe8 {[%clk 0:02:00.7]} 23. Qg3 {[%clk 0:02:22.4]} 23... Nh5 {[%clk
0:01:56.9]} 24. Qg4 {[%clk 0:02:18.5]} 24... Rf5 {[%clk 0:01:55.1]} 25. Bxg7
{[%clk 0:02:14.7]} 25... Nxg7 {[%clk 0:01:55.1]} 26. Rxf5 {[%clk 0:02:12.6]}
26... exf5 {[%clk 0:01:52.8]} 27. Qc4+ {[%clk 0:02:13.6]} 27... Qe6 {[%clk
0:01:50.3]} 28. Qxc5 {[%clk 0:02:12.4]} 28... Rd8 {[%clk 0:01:49.9]} 29. Rd1
{[%clk 0:02:10.4]} 29... Ne8 {[%clk 0:01:46.2]} 30. Qf2 {[%clk 0:01:22.9]} 30...
Rxd6 {[%clk 0:01:43.4]} 31. Re1 {[%clk 0:01:22.5]} 31... Qd7 {[%clk 0:01:41.8]}
32. Qg3+ {[%clk 0:01:18.7]} 32... Ng7 {[%clk 0:01:42.3]} 33. Qh4 {[%clk
0:01:09.8]} 33... Qc6 {[%clk 0:01:40]} 34. Qf4 {[%clk 0:00:59.9]} 34... Rg6
{[%clk 0:01:36.8]} 35. Re2 {[%clk 0:00:59.4]} 35... Kh7 {[%clk 0:01:36.7]} 36.
Kh2 {[%clk 0:00:57.5]} 36... Qd6 {[%clk 0:01:26.6]} 37. Qxd6 {[%clk 0:00:57.7]}
37... Rxd6 {[%clk 0:01:28.5]} 38. Kg3 {[%clk 0:00:34.1]} 38... Kg6 {[%clk
0:01:24.4]} 39. Kf3 {[%clk 0:00:31.2]} 39... Kf6 {[%clk 0:01:22.8]} 40. Ke3
{[%clk 0:00:28.9]} 40... Ne6 {[%clk 0:01:21.6]} 41. g3 {[%clk 0:00:30.1]} 41...
Nc5 {[%clk 0:01:16.8]} 42. Rd2 {[%clk 0:00:19.1]} 42... Rxd2 {[%clk 0:01:15.4]}
43. Kxd2 {[%clk 0:00:20.3]} 43... Ke5 {[%clk 0:01:11.4]} 44. Ke3 {[%clk
0:00:21.6]} 44... a5 {[%clk 0:01:10.2]} 45. h4 {[%clk 0:00:21.1]} 45... h5
{[%clk 0:01:11]} 46. Kf3 {[%clk 0:00:20.9]} 46... Nd3 {[%clk 0:01:08.1]} 47. Nd1
{[%clk 0:00:17.4]} 47... b6 {[%clk 0:01:09]} 48. Ke3 {[%clk 0:00:17]} 48... Nc5
{[%clk 0:01:09.1]} 49. Nc3 {[%clk 0:00:18.5]} 49... Ne4 {[%clk 0:01:06.7]} 50.
Ne2 {[%clk 0:00:19.8]} 50... Nxg3 {[%clk 0:01:03.8]} 51. Nf4 {[%clk 0:00:14.2]}
51... Nf1+ {[%clk 0:01:05]} 52. Kf3 {[%clk 0:00:15]} 52... Nd2+ {[%clk
0:01:06.2]} 53. Kg3 {[%clk 0:00:13.4]} 53... Nc4 {[%clk 0:01:02.1]} 54. b3
{[%clk 0:00:13.3]} 54... Nd2 {[%clk 0:01:02.8]} 55. Nxh5 {[%clk 0:00:14.5]}
55... Nxb3 {[%clk 0:01:04.2]} 56. Nf4 {[%clk 0:00:14.2]} 56... Nc5 {[%clk
0:01:04.1]} 57. h5 {[%clk 0:00:14.4]} 57... Nxa4 {[%clk 0:01:01.9]} 58. h6
{[%clk 0:00:14.9]} 58... Kf6 {[%clk 0:01:03.4]} 59. Kf3 {[%clk 0:00:10.9]} 59...
Nc3 {[%clk 0:01:02.4]} 60. Ke3 {[%clk 0:00:10.8]} 60... b5 {[%clk 0:01:02.4]}
61. Kd3 {[%clk 0:00:11.3]} 61... Ne4 {[%clk 0:01:01.5]} 62. Kd4 {[%clk
0:00:07.9]} 62... a4 {[%clk 0:01:02.3]} 63. Kd3 {[%clk 0:00:05.7]} 63... a3
{[%clk 0:01:01.2]} 64. Kc2 {[%clk 0:00:06.7]} 64... Nc5 {[%clk 0:00:57.1]} 65.
Nd5+ {[%clk 0:00:06]} 65... Kg6 {[%clk 0:00:56.9]} 66. Ne7+ {[%clk 0:00:07.1]}
66... Kxh6 {[%clk 0:00:56.7]} 67. Nxf5+ {[%clk 0:00:08.3]} 67... Kg5 {[%clk
0:00:56]} 68. Ne3 {[%clk 0:00:05.1]} 68... Kf4 {[%clk 0:00:40.9]} 69. Nd5+
{[%clk 0:00:05.3]} 69... Ke5 {[%clk 0:00:41.6]} 70. Nb4 {[%clk 0:00:06.6]} 70...
Kd4 {[%clk 0:00:39.2]} 71. Nc6+ {[%clk 0:00:02.7]} 71... Kd5 {[%clk 0:00:37.6]}
72. Nb4+ {[%clk 0:00:02.6]} 72... Kc4 {[%clk 0:00:38.9]} 73. Na2 {[%clk
0:00:03.2]} 73... Nd3 {[%clk 0:00:39.7]} 74. Kb1 {[%clk 0:00:03.5]} 74... Kb3
{[%clk 0:00:36.1]} 75. Ka1 {[%clk 0:00:03.9]} 75... b4 {[%clk 0:00:29]} 76. Kb1
{[%clk 0:00:04.7]} 76... Kc4 {[%clk 0:00:24.4]} 77. Ka1 {[%clk 0:00:05.3]} 77...
b3 {[%clk 0:00:25]} 78. Kb1 {[%clk 0:00:06.3]} 78... bxa2+ {[%clk 0:00:25.5]}
79. Kxa2 {[%clk 0:00:07.3]} 79... Kb4 {[%clk 0:00:27.3]} 80. Ka1 {[%clk
0:00:08.3]} 80... Kb3 {[%clk 0:00:29]} 81. Kb1 {[%clk 0:00:09.5]} 81... Nb4
{[%clk 0:00:30.9]} 82. Ka1 {[%clk 0:00:10.3]} 82... Nc2+ {[%clk 0:00:32.5]} 0-1

[Event "*** Titled Tuesday Blitz"]
[Site "Chess.com"]
[Date "2018.09.04"]
[Round "7"]
[White "LawrenceTrent"]
[Black "BlackBoarder"]
[Result "1/2-1/2"]
[WhiteElo "2548"]
[BlackElo "2445"]
[TimeControl "180+2"]
[EndTime "15:14:04 PDT"]
[Termination "Game drawn by agreement"]

1. d4 {[%clk 0:03:01.8]} 1... Nf6 {[%clk 0:03:00.7]} 2. Bg5 {[%clk 0:03:02]}
2... Ne4 {[%clk 0:02:59.1]} 3. Bf4 {[%clk 0:03:02.5]} 3... c5 {[%clk 0:02:57.4]}
4. f3 {[%clk 0:03:03.3]} 4... Nf6 {[%clk 0:02:53.3]} 5. dxc5 {[%clk 0:03:01]}
5... Na6 {[%clk 0:02:36.5]} 6. e4 {[%clk 0:02:59.9]} 6... Nxc5 {[%clk
0:02:37.2]} 7. Nc3 {[%clk 0:03:00.7]} 7... d6 {[%clk 0:02:35.8]} 8. Qd2 {[%clk
0:03:01.4]} 8... Bd7 {[%clk 0:02:35]} 9. O-O-O {[%clk 0:03:00]} 9... g6 {[%clk
0:02:35.4]} 10. Kb1 {[%clk 0:02:45.6]} 10... Bg7 {[%clk 0:02:33]} 11. g4 {[%clk
0:02:46.1]} 11... O-O {[%clk 0:02:32.9]} 12. Bh6 {[%clk 0:02:44.9]} 12... Rc8
{[%clk 0:02:22.6]} 13. h4 {[%clk 0:02:44.6]} 13... Qa5 {[%clk 0:02:11.9]} 14.
Bxg7 {[%clk 0:02:30.6]} 14... Kxg7 {[%clk 0:02:12.1]} 15. h5 {[%clk 0:02:17.5]}
15... Na4 {[%clk 0:02:04]} 16. Nge2 {[%clk 0:02:14.2]} 16... Bb5 {[%clk
0:01:17.6]} 17. Nxa4 {[%clk 0:01:31.8]} 17... Qxd2 {[%clk 0:01:12.3]} 18. Rxd2
{[%clk 0:01:33.7]} 18... Bxa4 {[%clk 0:01:13.3]} 19. Nc3 {[%clk 0:01:27.3]}
19... Bc6 {[%clk 0:01:09.6]} 20. Bd3 {[%clk 0:01:14.5]} 20... Rfd8 {[%clk
0:01:02.8]} 21. h6+ {[%clk 0:01:11.1]} 21... Kf8 {[%clk 0:01:02]} 22. Rhd1
{[%clk 0:01:09.7]} 22... g5 {[%clk 0:00:53.3]} 23. Ne2 {[%clk 0:01:07]} 23...
Ng8 {[%clk 0:00:36.3]} 24. Nd4 {[%clk 0:01:04.3]} 24... Bd7 {[%clk 0:00:28.6]}
25. Nf5 {[%clk 0:00:55.1]} 25... Bxf5 {[%clk 0:00:29.4]} 26. gxf5 {[%clk
0:00:56.9]} 26... f6 {[%clk 0:00:27.4]} 27. b3 {[%clk 0:00:57.5]} 27... Rc5
{[%clk 0:00:11.5]} 28. Bc4 {[%clk 0:00:57.8]} 28... Rdc8 {[%clk 0:00:07.4]} 29.
Be6 {[%clk 0:00:57.9]} 29... R8c7 {[%clk 0:00:08.7]} 30. Rg1 {[%clk 0:00:45.3]}
30... b5 {[%clk 0:00:05.5]} 31. f4 {[%clk 0:00:45.4]} 31... Nxh6 {[%clk
0:00:04.4]} 32. fxg5 {[%clk 0:00:46.5]} 32... fxg5 {[%clk 0:00:05.8]} 33. Rh2
{[%clk 0:00:46]} 33... Nf7 {[%clk 0:00:04.5]} 34. Rxh7 {[%clk 0:00:45.6]} 34...
Nd8 {[%clk 0:00:04.6]} 35. Rxg5 {[%clk 0:00:32.3]} 35... Nxe6 {[%clk 0:00:05.2]}
36. Rg6 {[%clk 0:00:23.3]} 36... Nf4 {[%clk 0:00:03.1]} 37. Rg4 {[%clk
0:00:20.5]} 37... Ne2 {[%clk 0:00:03.4]} 38. Rg2 {[%clk 0:00:10.4]} 38... Nd4
{[%clk 0:00:03.3]} 39. c4 {[%clk 0:00:09.9]} 39... bxc4 {[%clk 0:00:03.8]} 40.
b4 {[%clk 0:00:11.7]} 40... Rb5 {[%clk 0:00:04.8]} 41. a3 {[%clk 0:00:13.6]}
41... a5 {[%clk 0:00:05.6]} 42. Kb2 {[%clk 0:00:12.3]} 42... axb4 {[%clk
0:00:06.3]} 43. axb4 {[%clk 0:00:14.1]} 43... Ke8 {[%clk 0:00:06.1]} 44. Kc3
{[%clk 0:00:13.9]} 44... Nc6 {[%clk 0:00:07.2]} 45. Rg8+ {[%clk 0:00:13.4]}
45... Kd7 {[%clk 0:00:08.2]} 46. f6 {[%clk 0:00:15.2]} 46... Ne5 {[%clk
0:00:03.7]} 47. Rxe7+ {[%clk 0:00:14.8]} 47... Kc6 {[%clk 0:00:05.1]} 48. Rxc7+
{[%clk 0:00:11.2]} 48... Kxc7 {[%clk 0:00:06.5]} 49. f7 {[%clk 0:00:11.1]} 49...
Nxf7 {[%clk 0:00:06.9]} 50. Rg7 {[%clk 0:00:12.3]} 50... d5 {[%clk 0:00:06.1]}
51. Rxf7+ {[%clk 0:00:14]} 51... Kc6 {[%clk 0:00:06.6]} 52. Rf6+ {[%clk
0:00:14.3]} 52... Kc7 {[%clk 0:00:05]} 53. exd5 {[%clk 0:00:15.4]} 53... Rxd5
{[%clk 0:00:06]} 54. Kxc4 {[%clk 0:00:17.1]} 54... Rh5 {[%clk 0:00:07.2]} 55.
Rf4 {[%clk 0:00:16.3]} 55... Kb7 {[%clk 0:00:07.4]} 56. Rd4 {[%clk 0:00:17.5]}
56... Rg5 {[%clk 0:00:08.2]} 57. Kc3 {[%clk 0:00:17.1]} 57... Rh5 {[%clk
0:00:08.9]} 58. Kb3 {[%clk 0:00:18.4]} 58... Rg5 {[%clk 0:00:10.2]} 59. Ka4
{[%clk 0:00:19.5]} 59... Rh5 {[%clk 0:00:11.5]} 60. Rc4 {[%clk 0:00:20.3]} 60...
Rg5 {[%clk 0:00:12.5]} 61. Rh4 {[%clk 0:00:21.4]} 61... Rf5 {[%clk 0:00:13.4]}
62. b5 {[%clk 0:00:22.4]} 62... Rf1 {[%clk 0:00:13.7]} 63. Rh7+ {[%clk
0:00:22.3]} 63... Kb8 {[%clk 0:00:13]} 64. Ka5 {[%clk 0:00:22.8]} 64... Rf6
{[%clk 0:00:09.6]} 65. Rg7 {[%clk 0:00:22.7]} 65... Rh6 {[%clk 0:00:09.7]} 66.
Rg5 {[%clk 0:00:21.6]} 66... Rf6 {[%clk 0:00:10.6]} 67. Rc5 {[%clk 0:00:22.7]}
67... Rh6 {[%clk 0:00:11]} 68. Rd5 {[%clk 0:00:23.6]} 68... Rg6 {[%clk
0:00:11.8]} 69. Kb4 {[%clk 0:00:24.8]} 69... Rh6 {[%clk 0:00:12.7]} 70. Kc5
{[%clk 0:00:26.1]} 70... Rg6 {[%clk 0:00:13.5]} 71. Re5 {[%clk 0:00:23.3]} 71...
Rh6 {[%clk 0:00:14.4]} 72. Rg5 {[%clk 0:00:24.4]} 72... Rf6 {[%clk 0:00:15.3]}
73. Kd5 {[%clk 0:00:24.3]} 73... Rh6 {[%clk 0:00:16]} 74. Kc5 {[%clk 0:00:25.5]}
74... Rf6 {[%clk 0:00:16.9]} 75. Kb4 {[%clk 0:00:26.4]} 75... Rh6 {[%clk
0:00:17.7]} 76. Ka5 {[%clk 0:00:27.5]} 76... Rf6 {[%clk 0:00:18.6]} 77. Rc5
{[%clk 0:00:27.8]} 77... Rh6 {[%clk 0:00:19.2]} 78. Rc4 {[%clk 0:00:28.7]} 78...
Rg6 {[%clk 0:00:20]} 79. Rf4 {[%clk 0:00:25.3]} 79... Rh6 {[%clk 0:00:21]} 80.
Kb4 {[%clk 0:00:25.2]} 80... Rg6 {[%clk 0:00:21.7]} 81. Kc5 {[%clk 0:00:26.3]}
81... Rh6 {[%clk 0:00:22.7]} 82. Rd4 {[%clk 0:00:26.6]} 82... Rg6 {[%clk
0:00:23.7]} 83. Kd5 {[%clk 0:00:26.4]} 83... Rh6 {[%clk 0:00:24.2]} 84. Rc4
{[%clk 0:00:27.5]} 84... Kb7 {[%clk 0:00:19.6]} 85. Kc5 {[%clk 0:00:27.5]} 85...
Rh5+ {[%clk 0:00:19.1]} 86. Kb4 {[%clk 0:00:28.6]} 86... Rh6 {[%clk 0:00:19.2]}
87. Rg4 {[%clk 0:00:29.8]} 87... Rf6 {[%clk 0:00:19.9]} 88. Ka5 {[%clk
0:00:30.4]} 88... Rh6 {[%clk 0:00:20]} 89. b6 {[%clk 0:00:31.5]} 89... Rh1
{[%clk 0:00:15.8]} 90. Rg7+ {[%clk 0:00:30.6]} 90... Kb8 {[%clk 0:00:16.8]} 91.
Rg8+ {[%clk 0:00:29.3]} 91... Kb7 {[%clk 0:00:17.6]} 92. Rg7+ {[%clk 0:00:30.5]}
92... Kb8 {[%clk 0:00:18.8]} 93. Kb5 {[%clk 0:00:29.6]} 93... Rb1+ {[%clk
0:00:19.2]} 94. Kc6 {[%clk 0:00:30.7]} 94... Rc1+ {[%clk 0:00:20.6]} 95. Kb5
{[%clk 0:00:31.9]} 95... Rb1+ {[%clk 0:00:21.7]} 96. Kc5 {[%clk 0:00:33.7]}
96... Rc1+ {[%clk 0:00:22.7]} 97. Kb4 {[%clk 0:00:34.2]} 97... Rb1+ {[%clk
0:00:23.8]} 98. Ka5 {[%clk 0:00:35.8]} 98... Ra1+ {[%clk 0:00:24.9]} 99. Kb5
{[%clk 0:00:36.6]} 99... Rb1+ {[%clk 0:00:26.2]} 100. Kc6 {[%clk 0:00:38.4]}
100... Rc1+ {[%clk 0:00:27.1]} 101. Kd5 {[%clk 0:00:39.5]} 101... Rd1+ {[%clk
0:00:27.6]} 102. Kc4 {[%clk 0:00:40.7]} 102... Rc1+ {[%clk 0:00:28.4]} 103. Kd4
{[%clk 0:00:41.8]} 103... Rd1+ {[%clk 0:00:29.1]} 104. Kc3 {[%clk 0:00:42.7]}
104... Rb1 {[%clk 0:00:30.1]} 105. b7 {[%clk 0:00:42.5]} 105... Rxb7 {[%clk
0:00:31]} 106. Rg8+ {[%clk 0:00:43.4]} 106... Ka7 {[%clk 0:00:32.1]} 107. Kc4
{[%clk 0:00:43.5]} 107... Rb1 {[%clk 0:00:29.6]} 108. Kc5 {[%clk 0:00:40.9]}
1/2-1/2